bitfinex-derivatives/quotes_ETHF0:USTF0_20250214
["timestamp","ask_amount","ask_price","bid_price","bid_amount"]
[1739541373384,8.28975299,2705.3,2703.8,12.98905299]
[1739541373592,8.28975299,2705.3,2704.8,0.73931]
[1739541373593,0.5493,2704.9,2704.8,0.73931]
[1739541373888,0.5493,2704.9,2704.8,2.38431]
[1739541374090,0.5561,2705.1,2704.8,1.645]
[1739541374284,0.5561,2705.1,2705.0,0.73926]
[1739541375195,0.00554518,2705.2,2704.8,1.645]
[1739541375392,6.44175299,2705.9,2705.1,3.23395299]
[1739541375584,6.44175299,2705.9,2705.3,3.2078]
[1739541375889,1.7443,2706.3,2705.3,3.2078]
[1739541375890,6.44175299,2706.2,2705.5,0.73911]
[1739541376083,6.44175299,2706.2,2705.6,3.2078]
[1739541376391,1.1528,2706.3,2705.9,3.2078]
[1739541376587,0.00552557,2706.2,2705.9,3.2078]
[1739541376793,0.73896,2706.1,2706.0,1.645]
[1739541377289,3.23947856,2706.2,2706.0,1.645]
[1739541377488,0.73896,2706.1,2706.0,1.645]
[1739541378284,3.97841856,2706.2,2706.0,1.645]
[1739541378481,3.23947856,2706.2,2706.0,1.645]
[1739541378685,0.73896,2706.1,2706.0,1.645]
[1739541379186,3.23947856,2706.2,2706.0,1.645]
[1739541379593,0.73896,2706.1,2706.0,1.645]
[1739541379990,3.97841856,2706.2,2706.0,1.645]
[1739541380191,0.73896,2706.1,2706.0,1.645]
[1739541380699,3.97841856,2706.2,2706.0,1.645]
[1739541381089,3.23947856,2706.2,2706.0,1.645]
[1739541381588,0.73896,2706.1,2706.0,1.645]
[1739541382483,3.23947856,2706.2,2705.6,3.2078]
[1739541382484,0.73906,2705.7,2705.6,3.2078]
[1739541382686,0.73906,2705.7,2705.6,4.8518]
[1739541384697,0.73906,2705.7,2705.6,3.2078]
[1739541384898,0.73914,2705.5,2705.3,1.32716]
[1739541385199,0.73912,2705.5,2705.4,1.644]
[1739541387199,3.2078,2705.6,2704.7,1.70074518]
[1739541387392,0.73931,2704.8,2704.7,1.64954518]
[1739541390197,0.73931,2704.8,2704.7,0.00554518]
[1739541390998,0.73931,2704.8,2704.7,1.64954518]
[1739541391699,0.73931,2704.8,2704.7,0.00554518]
[1739541391894,1.32941,2704.8,2704.7,0.00554518]
[1739541392504,1.84837,2704.7,2703.2,4.76698215]
[1739541392799,3.23395299,2703.5,2702.9,1.685]
[1739541393195,1.1644,2703.8,2703.4,3.2078]
[1739541393396,0.73955,2704.0,2703.7,3.2078]
[1739541393591,0.00554518,2703.9,2703.7,3.2078]
[1739541393992,0.73958,2703.8,2703.7,3.2078]
[1739541394194,0.00554518,2703.9,2703.7,3.2078]
[1739541394394,0.74511518,2703.9,2703.7,3.2078]
[1739541394593,0.74511518,2703.9,2703.8,0.5763]
[1739541395588,0.00554518,2703.9,2703.8,0.5763]
[1739541396603,0.73936,2704.7,2704.2,0.73947]
[1739541396796,3.23395299,2705.0,2704.4,3.2078]
[1739541396995,0.73937,2704.6,2704.5,0.5941]
[1739541397297,0.73937,2704.6,2703.9,3.2078]
[1739541397298,3.2078,2704.6,2703.9,3.2078]
[1739541397502,0.73955,2704.0,2703.7,1.644]
[1739541398800,0.73956,2703.9,2703.8,1.644]
[1739541399000,0.73954,2704.0,2703.8,1.644]
[1739541399505,0.73956,2703.9,2703.8,1.644]
[1739541400296,0.73963,2703.7,2703.4,1.1458]
[1739541400495,0.73963,2703.7,2703.5,1.644]
[1739541400901,4.04429651,2704.2,2703.4,1.1458]
[1739541401102,0.73967,2703.5,2703.4,1.1458]
[1739541401298,0.73967,2703.5,2703.4,2.7898]
[1739541402003,0.5496,2703.9,2703.4,2.7898]
[1739541402204,0.73967,2703.5,2703.4,2.7898]
[1739541403003,0.73969,2703.4,2703.3,0.00554518]
[1739541403199,0.73969,2703.4,2703.3,1.64954518]
[1739541404006,0.73969,2703.4,2703.3,0.00554518]
[1739541404209,0.73969,2703.4,2703.3,1.64954518]
[1739541408798,3.2078,2703.7,2703.3,1.64954518]
[1739541409006,1.0992,2703.9,2703.3,1.64954518]
[1739541409201,0.73962,2703.7,2703.5,0.73965]
[1739541409403,3.2078,2704.0,2703.6,0.5878]
[1739541409598,0.7396,2703.8,2703.6,1.89894]
[1739541409807,3.2078,2704.0,2703.6,1.1593]
[1739541410007,0.7396,2703.8,2703.6,1.89892]
[1739541410200,3.2078,2704.0,2703.6,1.89892]
[1739541410406,0.73961,2703.8,2703.6,1.89892]
[1739541410606,0.73961,2703.7,2703.6,1.89892]
[1739541411008,3.2078,2704.0,2703.6,1.89892]
[1739541411207,0.73961,2703.7,2703.6,1.89892]
[1739541411821,3.2078,2704.0,2703.6,1.1593]
[1739541412215,0.73961,2703.7,2703.6,1.1593]
[1739541414014,4.04429651,2703.9,2703.6,1.644]
[1739541414216,0.73961,2703.7,2703.6,1.644]
[1739541414811,3.94741,2703.7,2703.6,1.644]
[1739541415513,3.2078,2703.7,2703.3,0.00554518]
[1739541415722,0.73969,2703.4,2703.3,0.00554518]
[1739541416017,0.73969,2703.4,2703.3,1.64954518]
[1739541416419,3.94749,2703.4,2703.3,1.64954518]
[1739541416822,3.94749,2703.4,2703.3,0.00554518]
[1739541417015,3.94749,2703.4,2703.3,1.64954518]
[1739541418222,0.73962,2703.7,2703.3,1.64954518]
[1739541418423,0.73962,2703.7,2703.6,0.73964]
[1739541418919,0.73964,2703.6,2703.5,3.94745]
[1739541419116,0.5649,2703.8,2703.5,3.2078]
[1739541419324,0.73964,2703.6,2703.5,3.2078]
[1739541422533,0.73964,2703.6,2703.5,4.8518]
[1739541423243,0.73964,2703.6,2703.5,3.2078]
[1739541423456,0.73964,2703.6,2703.5,4.8518]
[1739541424829,0.73964,2703.6,2703.5,1.644]
[1739541425024,0.73969,2703.4,2703.3,0.00554518]
[1739541425222,0.73969,2703.4,2703.3,2.38926518]
[1739541425517,0.73969,2703.4,2703.3,0.00554518]
[1739541425719,3.96915585,2703.4,2703.3,1.64954518]
[1739541426025,3.96915585,2703.4,2703.3,0.00554518]
[1739541426326,4.54225585,2703.4,2703.3,0.00554518]
[1739541426518,5.09255585,2703.4,2703.3,0.00554518]
[1739541431129,1.84932,2703.3,2702.6,0.73991]
[1739541431324,0.73987,2702.8,2702.7,0.73987]
[1739541431627,0.73976,2703.2,2702.6,4.8518]
[1739541431928,0.73976,2703.2,2703.1,0.73976]
[1739541432121,0.73976,2703.2,2703.1,2.38376]
[1739541432317,0.00554518,2703.4,2703.3,0.73972]
[1739541432923,0.74523518,2703.4,2703.3,0.73972]
[1739541433423,0.00554518,2703.4,2703.3,0.73972]
[1739541435818,0.74524518,2703.4,2703.2,3.7876]
[1739541436027,0.74524518,2703.4,2703.3,1.644]
[1739541436231,0.00554518,2703.4,2703.3,1.644]
[1739541436524,0.74523518,2703.4,2703.3,1.644]
[1739541437328,0.00554518,2703.4,2703.2,1.644]
[1739541437533,3.94752,2703.3,2703.2,1.644]
[1739541438830,3.2078,2703.3,2702.9,19.37554518]
[1739541439025,3.96924585,2703.1,2703.0,1.644]
[1739541440532,3.22946585,2703.1,2702.9,19.37554518]
[1739541440833,0.7398,2703.0,2702.9,21.01954518]
[1739541441232,3.97473103,2703.4,2703.2,0.73975]
[1739541441434,3.23501103,2703.4,2703.2,0.73975]
[1739541441634,3.97473103,2703.4,2703.2,0.73975]
[1739541441934,0.73972,2703.3,2703.0,0.5806]
[1739541442135,0.73972,2703.3,2703.1,0.73975]
[1739541442535,3.23501103,2703.4,2703.1,0.73975]
[1739541442736,0.73975,2703.2,2703.1,0.73975]
[1739541442932,0.73974,2703.3,2703.1,0.73975]
[1739541443436,3.23501103,2703.4,2703.1,0.73975]
[1739541443736,0.73974,2703.3,2703.1,0.73975]
[1739541444134,3.23501103,2703.4,2703.1,0.73977]
[1739541444432,0.73978,2703.1,2703.0,1.3204]
[1739541445136,0.73976,2703.2,2703.0,1.3204]
[1739541445840,6.44281103,2703.4,2703.0,0.5806]
[1739541446136,0.73976,2703.2,2703.0,1.32039]
[1739541448439,0.5501,2703.3,2703.0,0.5806]
[1739541448934,3.22946585,2703.1,2702.9,0.00554518]
[1739541449236,0.7398,2703.0,2702.9,0.00554518]
[1739541449440,1.2871,2703.0,2702.9,0.00554518]
[1739541449833,0.5473,2703.0,2702.5,1.644]
[1739541450032,7.17717585,2702.6,2702.5,1.644]
[1739541450238,6.43726585,2702.6,2702.0,3.7842]
[1739541450434,3.96945585,2702.3,2702.2,1.644]
[1739541450937,6.43726585,2702.3,2701.7,0.5751]
[1739541451133,3.96955585,2702.0,2701.8,2.38413]
[1739541451333,0.7401,2701.9,2701.8,1.644]
[1739541452133,6.43726585,2702.3,2701.8,1.644]
[1739541452331,6.43726585,2702.3,2701.9,0.74009]
[1739541452540,0.74005,2702.1,2701.9,0.74009]
[1739541453038,0.74005,2702.1,2702.0,1.644]
[1739541453232,6.43726585,2702.3,2702.1,0.74003]
[1739541453437,0.74004,2702.2,2702.0,2.38406]
[1739541453638,3.2078,2702.3,2702.0,1.644]
[1739541453842,3.2078,2702.3,2702.1,0.74002]
[1739541454035,3.2078,2702.3,2702.0,1.644]
[1739541454349,0.74005,2702.1,2702.0,1.644]
[1739541455543,0.5917,2702.2,2702.0,1.644]
[1739541455842,0.5917,2702.2,2702.1,0.74005]
[1739541456238,1.33172,2702.2,2702.1,0.74005]
[1739541456635,4.51871,2702.3,2702.1,0.74005]
[1739541456835,0.74002,2702.2,2702.1,0.74005]
[1739541457038,4.51871,2702.3,2702.1,0.74005]
[1739541457337,4.51871,2702.3,2702.1,0.74003]
[1739541457542,3.7787,2702.3,2702.1,0.74003]
[1739541457742,3.2078,2702.3,2702.2,0.74002]
[1739541457944,0.73998,2702.4,2702.2,0.74002]
[1739541458144,3.2078,2702.6,2702.0,1.644]
[1739541458339,0.73998,2702.4,2702.0,1.644]
[1739541458539,0.73998,2702.4,2702.2,0.74]
[1739541459239,3.2078,2702.6,2702.0,1.644]
[1739541459435,0.73994,2702.5,2702.0,1.644]
[1739541459740,0.73995,2702.5,2702.3,0.73998]
[1739541459944,3.2078,2702.6,2702.4,0.5957]
[1739541460143,3.2078,2702.6,2702.5,2.38394]
[1739541460641,4.05046422,2703.3,2702.5,2.1838]
[1739541460946,0.73977,2703.2,2703.0,0.7398]
[1739541461146,4.05046422,2703.3,2703.1,1.644]
[1739541461346,4.05046422,2703.3,2702.6,3.2078]
[1739541461347,4.79019422,2703.3,2703.2,1.644]
[1739541469952,0.73973,2703.3,2703.2,1.644]
[1739541473752,4.05046422,2703.3,2702.6,3.2078]
[1739541473953,5.0572,2703.2,2702.8,0.73984]
[1739541474154,0.73986,2702.9,2702.8,0.73984]
[1739541474454,1.84951,2703.0,2702.8,1.644]
[1739541474651,1.32893,2702.9,2702.8,1.644]
[1739541474852,0.5891,2702.9,2702.7,0.73988]
[1739541475151,0.73986,2702.8,2702.7,0.73988]
[1739541475356,0.5891,2702.9,2702.7,1.644]
[1739541475549,0.5891,2702.9,2702.8,0.73986]
[1739541475550,1.32896,2702.9,2702.8,0.73986]
[1739541476359,0.5891,2702.9,2702.7,1.644]
[1739541476559,0.5891,2702.9,2702.7,2.38387]
[1739541476560,0.73986,2702.8,2702.7,2.38387]
[1739541476861,0.73986,2702.8,2702.7,1.644]
[1739541478154,0.73986,2702.8,2702.7,2.38388]
[1739541478461,0.73988,2702.7,2702.6,3.2078]
[1739541478852,0.73988,2702.7,2702.6,1.644]
[1739541479965,3.23035622,2702.8,2702.4,0.5957]
[1739541480268,0.5409,2702.6,2702.5,1.644]
[1739541480565,1.28083,2702.6,2702.5,1.644]
[1739541480868,0.5409,2702.6,2702.5,1.644]
[1739541481069,1.28081,2702.6,2702.5,1.644]
[1739541481770,0.5409,2702.6,2702.5,1.644]
[1739541482164,0.73991,2702.6,2702.5,1.644]
[1739541482363,3.23035622,2702.8,2702.7,0.73989]
[1739541482565,0.5891,2702.9,2702.5,4.8518]
[1739541482764,0.7399,2702.7,2702.6,0.73989]
[1739541483070,3.23035622,2702.8,2702.3,19.9411]
[1739541483263,0.73994,2702.5,2702.4,2.38394]
[1739541485571,0.73994,2702.5,2702.3,0.5681]
[1739541485572,3.23035622,2702.5,2702.3,0.5681]
[1739541485768,0.73997,2702.4,2702.3,1.644]
[1739541485974,1.29887,2702.4,2702.3,1.644]
[1739541488474,0.5589,2702.4,2702.1,0.74003]
[1739541488776,0.74002,2702.2,2702.1,0.74003]
[1739541488978,0.74002,2702.2,2702.1,2.38403]
[1739541489274,3.23035622,2702.2,2701.9,3.2078]
[1739541489576,0.74008,2702.0,2701.9,1.644]
[1739541490883,0.74013,2701.8,2701.7,20.68540518]
[1739541491182,0.74013,2701.8,2701.7,22.32940518]
[1739541491377,0.00554518,2702.0,2701.7,21.58924518]
[1739541491679,0.74013,2701.8,2701.7,22.32938518]
[1739541491973,0.74013,2701.8,2701.7,21.58924518]
[1739541492169,0.74013,2701.8,2701.7,21.02254518]
[1739541492369,0.74013,2701.8,2701.7,19.37854518]
[1739541493173,0.74013,2701.8,2701.7,0.00554518]
[1739541494880,0.74028,2701.3,2701.2,1.644]
[1739541495281,3.23035622,2701.5,2701.2,2.3843]
[1739541495477,3.23035622,2701.5,2701.2,1.644]
[1739541495685,3.78515622,2701.5,2701.2,1.644]
[1739541495976,0.74027,2701.3,2701.2,1.644]
[1739541496477,0.74027,2701.3,2701.1,0.74584518]
[1739541496674,0.74029,2701.3,2701.2,0.74029]
[1739541496979,0.74027,2701.3,2701.2,0.74029]
[1739541497384,0.74027,2701.3,2701.1,0.00554518]
[1739541497880,0.74027,2701.3,2701.1,0.74585518]
[1739541498685,0.5449,2701.4,2701.1,0.74585518]
[1739541498981,0.7403,2701.2,2701.1,0.74585518]
[1739541499175,0.7403,2701.2,2701.1,0.00554518]
[1739541499372,3.97065622,2701.2,2701.1,1.64954518]
[1739541501677,3.97065622,2701.2,2701.1,0.00554518]
[1739541505983,3.23035622,2701.2,2701.1,0.00554518]
[1739541506182,3.2078,2701.3,2701.2,0.7403]
[1739541506183,0.74028,2701.3,2701.2,0.7403]
[1739541506483,0.74028,2701.3,2701.2,1.3245]
[1739541506688,0.74028,2701.3,2701.2,0.5842]
[1739541507581,0.74027,2701.3,2701.2,1.32448]
[1739541507787,0.74027,2701.3,2701.2,2.45298]
[1739541508684,0.74027,2701.3,2701.2,1.7127]
[1739541509779,0.74027,2701.3,2701.2,2.453]
[1739541510280,1.28516,2701.4,2701.3,0.74027]
[1739541510583,0.74022,2701.5,2701.4,0.74022]
[1739541510790,3.2078,2701.6,2701.2,3.3577]
[1739541510986,0.74027,2701.3,2701.2,4.09798]
[1739541511189,0.74026,2701.4,2701.3,0.74026]
[1739541511790,0.74027,2701.3,2701.2,3.3577]
[1739541512893,0.74027,2701.3,2701.2,2.7846]
[1739541513085,3.94807,2701.3,2701.2,2.2292]
[1739541513485,4.49297,2701.3,2701.2,2.2292]
[1739541513786,1.28517,2701.3,2701.2,2.2292]
[1739541514186,0.74027,2701.3,2701.2,2.9695]
[1739541514387,3.23035622,2701.5,2701.2,2.9695]
[1739541514388,3.23035622,2701.5,2701.2,2.81]
[1739541514695,0.74027,2701.4,2701.3,0.74025]
[1739541514892,3.23035622,2701.5,2701.2,2.81]
[1739541515093,0.74025,2701.4,2701.3,1.32115]
[1739541515300,3.7527,2701.6,2701.3,0.5809]
[1739541515483,0.74023,2701.5,2701.4,0.74023]
[1739541515690,3.7527,2701.6,2701.3,0.5809]
[1739541515889,0.74024,2701.4,2701.3,1.32115]
[1739541516089,0.74024,2701.4,2701.3,2.96615]
[1739541516490,3.7527,2701.6,2701.3,2.2259]
[1739541516788,0.74024,2701.5,2701.4,0.74023]
[1739541516994,3.2078,2701.6,2701.3,2.2259]
[1739541517195,0.74024,2701.4,2701.3,2.96616]
[1739541517394,0.74022,2701.5,2701.4,0.74024]
[1739541517696,0.74024,2701.4,2701.3,2.96615]
[1739541517996,0.74024,2701.4,2701.3,2.2259]
[1739541518896,0.74024,2701.4,2701.3,2.96617]
[1739541519597,3.2078,2701.6,2701.3,2.2259]
[1739541519896,3.2078,2701.6,2701.4,0.74022]
[1739541519897,0.74023,2701.5,2701.4,0.74022]
[1739541520997,3.2078,2701.6,2701.3,2.2259]
[1739541521187,3.94802,2701.6,2701.5,0.74021]
[1739541521697,0.74023,2701.5,2701.4,0.74022]
[1739541521894,0.74023,2701.5,2701.4,0.74021]
[1739541523396,3.948,2701.6,2701.5,0.74021]
[1739541523896,3.2078,2701.6,2701.3,2.2259]
[1739541524197,0.74023,2701.5,2701.4,0.74021]
[1739541524394,3.2078,2701.6,2701.3,2.2259]
[1739541524594,3.94801,2701.6,2701.5,0.74021]
[1739541524893,3.2078,2701.6,2701.3,2.2259]
[1739541525088,0.74023,2701.5,2701.4,0.74022]
[1739541528291,3.948,2701.6,2701.5,0.74021]
[1739541528493,3.7697,2701.9,2701.5,1.85053]
[1739541528698,3.97041622,2702.1,2701.6,0.5877]
[1739541528994,3.2078,2702.3,2701.7,0.5596]
[1739541529301,0.74007,2702.1,2701.9,0.7401]
[1739541529502,3.2078,2702.3,2701.9,0.7401]
[1739541529702,3.2078,2702.3,2701.8,2.93993]
[1739541529898,0.7401,2701.9,2701.8,2.93993]
[1739541530494,0.74563518,2702.0,2701.9,0.7401]
[1739541531200,0.00554518,2702.0,2701.9,0.7401]
[1739541537498,0.74562518,2702.0,2701.9,0.7401]
[1739541537804,0.00554518,2702.0,2701.8,2.38412]
[1739541538000,0.00554518,2702.0,2701.9,0.7401]
[1739541538301,0.00554518,2702.0,2701.9,2.3841]
[1739541538699,0.57744518,2702.0,2701.9,2.3841]
[1739541540400,0.00554518,2702.0,2701.9,2.3841]
[1739541540796,0.00554518,2702.0,2701.9,2.9339]
[1739541551328,0.00554518,2702.0,2701.9,3.23064549]
[1739541552127,0.00554518,2702.0,2701.9,9.37164549]
[1739541552924,0.5382,2702.8,2702.7,0.73989]
[1739541553123,0.5382,2702.8,2702.7,2.38289]
[1739541553324,1.0773,2702.8,2702.7,2.38289]
[1739541553829,1.81716,2702.8,2702.7,2.38289]
[1739541554326,2.41316,2702.8,2702.7,2.38289]
[1739541554527,1.6733,2702.8,2702.7,2.38289]
[1739541554921,2.41316,2702.8,2702.7,2.38289]
[1739541556132,2.41316,2702.8,2702.7,1.643]
[1739541556529,2.41316,2702.8,2702.7,2.38289]
[1739541557129,1.6733,2702.8,2702.7,2.38289]
[1739541557522,1.1351,2702.8,2702.7,5.59069]
[1739541557831,0.5391,2702.8,2702.7,5.59069]
[1739541558625,0.5391,2702.8,2702.7,2.38289]
[1739541559022,0.5391,2702.8,2702.7,0.73989]
[1739541559226,1.27896,2702.8,2702.7,1.643]
[1739541559435,1.27896,2702.8,2702.7,2.38289]
[1739541560027,1.27896,2702.8,2702.7,1.643]
[1739541560630,1.27896,2702.8,2702.7,2.38289]
[1739541560831,1.27896,2702.8,2702.7,1.643]
[1739541562132,1.27896,2702.8,2702.7,2.38289]
[1739541562635,1.27896,2702.8,2702.7,1.643]
[1739541563538,0.73989,2702.7,2702.6,0.7399]
[1739541563735,1.29319,2702.7,2702.6,2.3829]
[1739541563934,4.52354622,2702.7,2702.6,2.3829]
[1739541564326,0.5533,2702.7,2702.6,2.3829]
[1739541566432,0.00554518,2703.0,2702.9,0.73983]
[1739541568233,0.00554518,2703.0,2702.6,2.7584]
[1739541568439,0.74536518,2703.0,2702.8,0.73984]
[1739541568739,3.2359014,2703.0,2702.9,1.643]
[1739541568938,3.9757014,2703.0,2702.9,1.643]
[1739541571043,3.9757014,2703.0,2702.9,0.748]
[1739541571542,3.9757014,2703.0,2702.5,0.74547518]
[1739541571543,1.84958,2702.9,2702.5,0.74547518]
[1739541571847,3.97026622,2702.6,2702.5,0.74548518]
[1739541572138,3.97026622,2702.6,2702.5,0.00554518]
[1739541582751,3.97026622,2702.6,2702.5,0.74548518]
[1739541583049,3.97026622,2702.6,2702.5,0.00554518]
[1739541595655,2.18609211,2702.6,2702.5,1.66514518]
[1739541596156,2.18609211,2702.6,2702.5,0.00554518]
[1739541597056,3.63227422,2702.6,2702.5,0.00554518]
[1739541597252,0.74008,2702.0,2701.9,3.94788]
[1739541597456,2.18626211,2702.0,2701.9,2.38208]
[1739541597655,0.74008,2702.0,2701.9,2.38208]
[1739541597847,3.23271458,2702.1,2701.8,0.74012]
[1739541598053,0.7401,2701.9,2701.8,2.38212]
[1739541598256,0.74013,2701.8,2701.7,0.5934]
[1739541598558,3.97284458,2701.8,2701.7,2.8256]
[1739541598759,3.97284458,2701.8,2701.7,3.56576]
[1739541599157,3.97284458,2701.8,2701.7,2.8256]
[1739541599655,3.97284458,2701.8,2701.7,1.1836]
[1739541600258,3.23271458,2701.8,2701.7,1.92376]
[1739541600455,3.2078,2702.0,2701.7,1.1836]
[1739541600657,3.2078,2702.0,2701.9,0.7401]
[1739541601158,3.23271458,2702.1,2702.0,0.74008]
[1739541601361,3.9478,2702.3,2702.1,0.74003]
[1739541601558,3.2078,2702.3,2702.2,1.6961]
[1739541601750,3.2078,2702.3,2702.2,2.43612]
[1739541602060,3.23271458,2702.4,2702.2,1.6961]
[1739541602361,3.2078,2702.6,2702.5,0.73994]
[1739541602860,0.13734045,2702.6,2702.5,0.73994]
[1739541603050,3.23825976,2703.0,2702.9,0.73983]
[1739541603858,3.23825976,2703.0,2702.9,1.31463]
[1739541604360,3.23825976,2703.0,2702.9,1.87043]
[1739541606248,3.23825976,2703.0,2702.9,2.45753]
[1739541607058,0.00554518,2703.0,2702.9,2.45753]
[1739541608866,7.18016458,2703.6,2703.4,0.73968]
[1739541609055,7.18016458,2703.6,2703.5,0.5919]
[1739541609961,6.44051458,2703.6,2703.3,1.642]
[1739541610165,0.73969,2703.4,2703.3,1.64754518]
[1739541611163,1.29158,2703.5,2703.3,1.64754518]
[1739541611368,0.5519,2703.5,2703.3,1.64754518]
[1739541611671,0.73969,2703.4,2703.3,1.64754518]
[1739541612967,0.73969,2703.4,2703.3,0.00554518]
[1739541613171,1.30849,2703.4,2703.3,0.00554518]
[1739541613466,1.8494,2703.2,2702.6,1.28059]
[1739541613669,3.23271458,2702.8,2702.7,0.73988]
[1739541617371,3.23271458,2702.8,2702.6,2.9226]
[1739541617765,0.73989,2702.7,2702.6,2.1827]
[1739541617965,0.73991,2702.6,2702.5,0.00554518]
[1739541618168,0.73991,2702.6,2702.5,1.64654518]
[1739541618373,0.73991,2702.6,2702.5,0.00554518]
[1739541618971,0.74008,2702.0,2701.9,4.8488]
[1739541619168,3.97279458,2702.0,2701.8,1.31152]
[1739541619368,0.7401,2701.9,2701.8,0.5714]
[1739541619571,0.7401,2701.9,2701.8,2.2124]
[1739541619972,1.2836,2701.9,2701.8,2.2124]
[1739541620976,1.2836,2701.9,2701.8,1.641]
[1739541621772,0.74016,2701.7,2701.6,0.00554518]
[1739541622079,3.97287458,2701.7,2701.6,0.00554518]
[1739541625969,1.85052,2701.6,2701.1,1.642]
[1739541626173,0.7403,2701.2,2701.1,1.642]
[1739541626774,0.5904,2701.3,2701.0,3.2078]
[1739541626981,0.74032,2701.1,2701.0,4.8498]
[1739541627677,0.74032,2701.1,2701.0,1.642]
[1739541628375,0.74035,2701.0,2700.9,1.64571643]
[1739541628577,3.97306458,2701.0,2700.9,1.64571643]
[1739541628778,3.97306458,2701.0,2700.9,0.00371643]
[1739541628977,7.18086458,2701.0,2700.9,0.00371643]
[1739541631778,6.44051458,2701.0,2699.8,3.2078]
[1739541631982,3.23271458,2700.1,2700.0,0.74062]
[1739541632276,3.23271458,2700.1,2700.0,2.38262]
[1739541632876,3.97331458,2700.1,2700.0,2.38262]
[1739541633077,3.23271458,2700.1,2700.0,2.38262]
[1739541633380,3.97331458,2700.1,2700.0,1.642]
[1739541634183,3.97333458,2700.1,2699.9,0.5509]
[1739541634379,0.74062,2700.0,2699.9,0.5509]
[1739541635384,0.74064,2700.0,2699.8,3.2078]
[1739541635576,3.23271458,2700.1,2699.8,3.94847]
[1739541635775,3.23271458,2700.1,2699.8,3.2078]
[1739541635976,3.97331458,2700.1,2699.9,0.74063]
[1739541636379,3.97331458,2700.1,2699.8,3.94847]
[1739541636587,3.97331458,2700.1,2699.9,0.74063]
[1739541636588,3.23271458,2700.1,2699.9,0.74063]
[1739541636886,3.97332458,2700.1,2699.8,3.94846]
[1739541637679,3.97333458,2700.1,2699.8,3.2078]
[1739541637886,0.74063,2700.0,2699.8,3.93320246]
[1739541638381,3.97332458,2700.1,2699.9,0.74065]
[1739541638686,0.74065,2700.0,2699.8,3.93321246]
[1739541639179,3.97332458,2700.1,2699.9,0.74065]
[1739541639778,0.74064,2700.0,2699.9,0.74065]
[1739541639974,0.74064,2700.0,2699.8,3.93319246]
[1739541640179,0.74064,2700.0,2699.8,3.19253246]
[1739541640378,3.23271458,2700.1,2699.8,3.19253246]
[1739541640580,0.74062,2700.0,2699.8,3.93320246]
[1739541640780,3.23271458,2700.1,2699.9,0.74063]
[1739541641087,3.97333458,2700.1,2699.9,0.74064]
[1739541641289,3.23271458,2700.1,2699.8,3.93320246]
[1739541641487,0.74065,2700.0,2699.8,3.93320246]
[1739541641982,0.74065,2700.0,2699.8,3.19253246]
[1739541642185,0.74063,2700.0,2699.9,0.74064]
[1739541642580,0.74063,2700.0,2699.8,3.19253246]
[1739541642581,0.74063,2700.0,2699.8,3.93319246]
[1739541643084,3.97332458,2700.1,2700.0,0.74062]
[1739541643589,0.74064,2700.0,2699.9,0.74064]
[1739541644178,3.23271458,2700.1,2699.8,3.19253246]
[1739541644681,3.23271458,2700.1,2699.7,2.185]
[1739541644880,3.97339458,2699.8,2699.7,2.92571]
[1739541645187,3.23271458,2699.8,2699.7,2.92571]
[1739541646487,3.97339458,2699.8,2699.7,2.92571]
[1739541646687,3.23271458,2699.8,2699.7,2.92571]
[1739541647383,3.97339458,2699.8,2699.7,2.92571]
[1739541647579,3.23271458,2699.8,2699.7,2.92571]
[1739541648489,3.97339458,2699.8,2699.7,2.92571]
[1739541648685,3.97339458,2699.8,2699.7,2.185]
[1739541650492,3.23271458,2699.8,2699.7,2.92571]
[1739541650689,3.97339458,2699.8,2699.7,2.92571]
[1739541652200,3.97339458,2699.8,2699.7,2.185]
[1739541652387,0.74073,2699.6,2699.5,1.33385]
[1739541652699,0.74073,2699.6,2699.5,2.97585]
[1739541652983,0.74072,2699.7,2699.6,0.74072]
[1739541653185,3.23271458,2700.1,2699.7,0.74071]
[1739541653489,0.74611518,2700.3,2700.1,0.7406]
[1739541653786,0.74611518,2700.3,2700.1,2.3826]
[1739541653787,0.00554518,2700.3,2700.1,2.3826]
[1739541653992,0.00554518,2700.3,2700.1,1.642]
[1739541654287,3.25856738,2700.2,2699.8,1.1195]
[1739541654485,0.74065,2699.9,2699.8,2.7615]
[1739541654682,0.74065,2699.9,2699.8,3.50218]
[1739541654885,3.25856738,2700.2,2699.8,2.7615]
[1739541655089,0.05076738,2700.2,2700.1,0.7406]
[1739541656186,0.79133738,2700.2,2700.1,0.7406]
[1739541656386,0.79133738,2700.2,2700.0,0.7406]
[1739541656787,0.79133738,2700.2,2700.1,0.7406]
[1739541656991,0.05076738,2700.2,2700.1,0.7406]
[1739541657493,0.05076738,2700.2,2700.1,1.2877]
[1739541657791,6.99941458,2700.9,2700.2,1.85142]
[1739541657995,0.74044,2700.7,2700.5,0.74047]
[1739541658189,0.74044,2700.7,2700.6,0.5471]
[1739541658684,0.74044,2700.7,2700.6,2.1891]
[1739541659291,0.74044,2700.7,2700.6,1.642]
[1739541660296,7.00497014,2700.9,2700.6,1.642]
[1739541660493,0.00555556,2700.9,2700.8,0.74041]
[1739541660793,0.74028,2701.3,2701.1,0.74031]
[1739541661093,0.74028,2701.3,2701.2,2.2178]
[1739541666301,0.5908,2701.4,2701.3,0.74027]
[1739541666600,0.74025,2701.4,2701.3,0.74025]
[1739541666804,0.74025,2701.4,2701.3,1.89525]
[1739541667103,0.74025,2701.4,2701.3,1.155]
[1739541667604,0.74024,2701.4,2701.3,0.5756]
[1739541667800,6.44607014,2701.5,2701.4,0.74024]
[1739541668010,0.00555556,2701.5,2701.4,0.74024]
[1739541668300,0.00555556,2701.5,2701.4,1.31964]